[Event "*** SCC Grand Prix: Titled Tuesday Blitz"]
[Site "Chess.com"]
[Date "2020.07.14"]
[Round "7"]
[White "Kavyev_Ruslan"]
[Black "vaishali2001"]
[Result "0-1"]
[WhiteElo "2451"]
[BlackElo "2610"]
[TimeControl "180+1"]
[EndTime "11:21:43 PDT"]
[Termination "vaishali2001 won by checkmate"]

1. d4 {[%clk 0:03:00.9]} 1... Nf6 {[%clk 0:02:58.8]} 2. c4 {[%clk 0:03:01.1]}
2... g6 {[%clk 0:02:58.9]} 3. Nc3 {[%clk 0:03:01.2]} 3... d5 {[%clk 0:02:58.8]}
4. Bf4 {[%clk 0:03:01.2]} 4... Bg7 {[%clk 0:02:57.6]} 5. e3 {[%clk 0:03:01.5]}
5... O-O {[%clk 0:02:52.9]} 6. Rc1 {[%clk 0:03:01.3]} 6... c5 {[%clk 0:02:42.8]}
7. dxc5 {[%clk 0:03:02.2]} 7... Qa5 {[%clk 0:02:41.4]} 8. cxd5 {[%clk
0:03:02.4]} 8... Ne4 {[%clk 0:02:38.1]} 9. Ne2 {[%clk 0:03:02]} 9... Na6 {[%clk
0:02:16.9]} 10. Qa4 {[%clk 0:02:58.3]} 10... Qxa4 {[%clk 0:01:36.2]} 11. Nxa4
{[%clk 0:02:59.2]} 11... Nb4 {[%clk 0:01:35.5]} 12. Nec3 {[%clk 0:02:56.6]}
12... Nxc3 {[%clk 0:01:30.5]} 13. Nxc3 {[%clk 0:02:56.3]} 13... Bxc3+ {[%clk
0:01:27.9]} 14. bxc3 {[%clk 0:02:55.5]} 14... Nxd5 {[%clk 0:01:28.8]} 15. Bg3
{[%clk 0:02:51.7]} 15... Rd8 {[%clk 0:01:24.8]} 16. Be2 {[%clk 0:02:41.4]} 16...
Be6 {[%clk 0:01:10.4]} 17. c4 {[%clk 0:02:28.6]} 17... Nb4 {[%clk 0:01:04.2]}
18. Rb1 {[%clk 0:02:15.6]} 18... Nc2+ {[%clk 0:00:43.8]} 19. Kf1 {[%clk
0:02:15.6]} 19... Rac8 {[%clk 0:00:34.8]} 20. Rxb7 {[%clk 0:02:03.6]} 20... Rxc5
{[%clk 0:00:33.1]} 21. Rxa7 {[%clk 0:01:33.9]} 21... Rxc4 {[%clk 0:00:22.6]} 22.
h4 {[%clk 0:01:19.2]} 22... Rb4 {[%clk 0:00:21.1]} 23. Kg1 {[%clk 0:01:16.3]}
23... Rd2 {[%clk 0:00:17.5]} 24. Bf3 {[%clk 0:01:15.7]} 24... Ne1 {[%clk
0:00:14.4]} 25. h5 {[%clk 0:00:56.8]} 25... Nxf3+ {[%clk 0:00:07.7]} 26. gxf3
{[%clk 0:00:56.9]} 26... gxh5 {[%clk 0:00:08]} 27. Rxh5 {[%clk 0:00:55.6]} 27...
Rxa2 {[%clk 0:00:05.5]} 28. Rg5+ {[%clk 0:00:52.4]} 28... Kf8 {[%clk 0:00:04.9]}
29. Rc7 {[%clk 0:00:46.7]} 29... Ra8 {[%clk 0:00:04.5]} 30. Rh5 {[%clk
0:00:45.5]} 30... Kg7 {[%clk 0:00:03.9]} 31. Rxe7 {[%clk 0:00:45.3]} 31... Kg6
{[%clk 0:00:04.1]} 32. Rh2 {[%clk 0:00:41.9]} 32... Rb1+ {[%clk 0:00:03.9]} 33.
Kg2 {[%clk 0:00:42.2]} 33... Raa1 {[%clk 0:00:04]} 34. f4 {[%clk 0:00:36.7]}
34... Bg4 {[%clk 0:00:03.9]} 35. f5+ {[%clk 0:00:27]} 35... Kxf5 {[%clk
0:00:02.5]} 36. f3 {[%clk 0:00:05.7]} 36... Rg1+ {[%clk 0:00:01.7]} 37. Kf2
{[%clk 0:00:06.3]} 37... Raf1+ {[%clk 0:00:02.6]} 38. Ke2 {[%clk 0:00:07]} 38...
Bxf3+ {[%clk 0:00:03.2]} 39. Kd3 {[%clk 0:00:07.7]} 39... Rxg3 {[%clk
0:00:03.4]} 40. Rxf7+ {[%clk 0:00:07.9]} 40... Ke6 {[%clk 0:00:03.5]} 41. Rf4
{[%clk 0:00:07.5]} 41... Rd1+ {[%clk 0:00:02.4]} 42. Kc3 {[%clk 0:00:06.9]}
42... Rd6 {[%clk 0:00:02.2]} 43. Rh6+ {[%clk 0:00:06.6]} 43... Kd7 {[%clk
0:00:01.7]} 44. Rxh7+ {[%clk 0:00:06.7]} 44... Kc6 {[%clk 0:00:01.8]} 45. Rc4+
{[%clk 0:00:06.7]} 45... Kb6 {[%clk 0:00:02.4]} 46. Rh8 {[%clk 0:00:04.6]} 46...
Rc6 {[%clk 0:00:02.5]} 47. Rb8+ {[%clk 0:00:04.5]} 47... Kc7 {[%clk 0:00:02.5]}
48. Rxc6+ {[%clk 0:00:04.1]} 48... Bxc6 {[%clk 0:00:03.4]} 49. Rh8 {[%clk
0:00:03.5]} 49... Rxe3+ {[%clk 0:00:03.8]} 50. Kd4 {[%clk 0:00:04.1]} 50... Re6
{[%clk 0:00:04.1]} 51. Rh7+ {[%clk 0:00:03.9]} 51... Kd6 {[%clk 0:00:04.5]} 52.
Rh4 {[%clk 0:00:04.8]} 52... Rf6 {[%clk 0:00:04.4]} 53. Rg4 {[%clk 0:00:04.8]}
53... Rf8 {[%clk 0:00:04.6]} 54. Rg6+ {[%clk 0:00:05]} 54... Kc7 {[%clk
0:00:04.9]} 55. Kc5 {[%clk 0:00:05.6]} 55... Rf5+ {[%clk 0:00:05.4]} 56. Kd4
{[%clk 0:00:06.3]} 56... Rd5+ {[%clk 0:00:04.8]} 57. Kc4 {[%clk 0:00:06.4]}
57... Kb6 {[%clk 0:00:05.1]} 58. Rg4 {[%clk 0:00:07]} 58... Ra5 {[%clk 0:00:05]}
59. Kc3 {[%clk 0:00:06]} 59... Kc5 {[%clk 0:00:05]} 60. Kd2 {[%clk 0:00:06.4]}
60... Bd5 {[%clk 0:00:05.2]} 61. Ke3 {[%clk 0:00:06.3]} 61... Ra3+ {[%clk
0:00:05.3]} 62. Kf4 {[%clk 0:00:06.8]} 62... Kd4 {[%clk 0:00:05.6]} 63. Kg5+
{[%clk 0:00:06.3]} 63... Ke5 {[%clk 0:00:05.8]} 64. Kg6 {[%clk 0:00:05.9]} 64...
Ra8 {[%clk 0:00:05.3]} 65. Rg5+ {[%clk 0:00:05.1]} 65... Ke6 {[%clk 0:00:05.2]}
66. Kh5 {[%clk 0:00:05.6]} 66... Ra4 {[%clk 0:00:04.4]} 67. Rg6+ {[%clk
0:00:03.6]} 67... Ke5 {[%clk 0:00:03.8]} 68. Rg5+ {[%clk 0:00:04.1]} 68... Ke6
{[%clk 0:00:03.9]} 69. Rg6+ {[%clk 0:00:04.5]} 69... Kf7 {[%clk 0:00:04]} 70.
Rg5 {[%clk 0:00:04.4]} 70... Bf3+ {[%clk 0:00:04.1]} 71. Kh6 {[%clk 0:00:04.7]}
71... Rh4+ {[%clk 0:00:04.1]} 72. Rh5 {[%clk 0:00:05.4]} 72... Rxh5# {[%clk
0:00:04.6]} 0-1

[Event "*** SCC Grand Prix: Titled Tuesday Blitz"]
[Site "Chess.com"]
[Date "2020.07.14"]
[Round "7"]
[White "GregShahade"]
[Black "keshka01"]
[Result "1-0"]
[WhiteElo "2727"]
[BlackElo "2562"]
[TimeControl "180+1"]
[EndTime "11:21:45 PDT"]
[Termination "GregShahade won on time"]

1. e4 {[%clk 0:03:00.9]} 1... Nf6 {[%clk 0:02:59.1]} 2. e5 {[%clk 0:03:00.7]}
2... Nd5 {[%clk 0:02:59.3]} 3. d4 {[%clk 0:03:00.8]} 3... d6 {[%clk 0:02:59.8]}
4. Nf3 {[%clk 0:03:01.3]} 4... dxe5 {[%clk 0:02:59.7]} 5. Nxe5 {[%clk
0:03:00.8]} 5... c6 {[%clk 0:03:00.2]} 6. Be2 {[%clk 0:02:57.9]} 6... Bf5 {[%clk
0:03:00.2]} 7. O-O {[%clk 0:02:57.3]} 7... Nd7 {[%clk 0:03:00]} 8. Nf3 {[%clk
0:02:57.7]} 8... e6 {[%clk 0:03:00.2]} 9. c4 {[%clk 0:02:49.8]} 9... N5f6 {[%clk
0:03:00.5]} 10. Nc3 {[%clk 0:02:49.5]} 10... Bd6 {[%clk 0:03:00.4]} 11. h3
{[%clk 0:02:45.8]} 11... O-O {[%clk 0:02:59.1]} 12. Be3 {[%clk 0:02:46.2]} 12...
Re8 {[%clk 0:02:51.3]} 13. Re1 {[%clk 0:02:43.6]} 13... e5 {[%clk 0:02:47]} 14.
c5 {[%clk 0:02:11.9]} 14... Bc7 {[%clk 0:02:39.7]} 15. dxe5 {[%clk 0:01:57.2]}
15... Nxe5 {[%clk 0:02:39.3]} 16. Nd4 {[%clk 0:01:57.2]} 16... Bg6 {[%clk
0:02:35.6]} 17. Qb3 {[%clk 0:01:56.9]} 17... Qb8 {[%clk 0:02:12.1]} 18. Rad1
{[%clk 0:01:48.8]} 18... Ned7 {[%clk 0:02:11.4]} 19. Nf3 {[%clk 0:01:33.1]}
19... Rxe3 {[%clk 0:01:52.5]} 20. fxe3 {[%clk 0:01:34]} 20... Nxc5 {[%clk
0:01:50.7]} 21. Qc4 {[%clk 0:01:32.1]} 21... Ne6 {[%clk 0:01:47.6]} 22. Nd4
{[%clk 0:01:26.4]} 22... Nxd4 {[%clk 0:01:23.8]} 23. exd4 {[%clk 0:01:27.3]}
23... Bb6 {[%clk 0:01:24.4]} 24. Bf3 {[%clk 0:01:19.7]} 24... Qd6 {[%clk
0:01:14.4]} 25. Ne4 {[%clk 0:00:38.7]} 25... Bxe4 {[%clk 0:00:48.3]} 26. Bxe4
{[%clk 0:00:39.6]} 26... Bc7 {[%clk 0:00:48.5]} 27. Bf3 {[%clk 0:00:30.2]} 27...
Qh2+ {[%clk 0:00:47.5]} 28. Kf1 {[%clk 0:00:30.1]} 28... Qf4 {[%clk 0:00:22]}
29. Qc1 {[%clk 0:00:17]} 29... Qd6 {[%clk 0:00:19.8]} 30. Qg5 {[%clk 0:00:16.2]}
30... h6 {[%clk 0:00:16.3]} 31. Qc5 {[%clk 0:00:15.7]} 31... Qh2 {[%clk
0:00:12.3]} 32. Qe7 {[%clk 0:00:14.5]} 32... Re8 {[%clk 0:00:06]} 33. Qb4 {[%clk
0:00:08.4]} 33... Rxe1+ {[%clk 0:00:04.9]} 34. Rxe1 {[%clk 0:00:08.2]} 34... Bg3
{[%clk 0:00:05.2]} 35. Re3 {[%clk 0:00:04.8]} 35... Qh1+ {[%clk 0:00:04.6]} 36.
Ke2 {[%clk 0:00:05]} 36... Qg1 {[%clk 0:00:04.7]} 37. Qd2 {[%clk 0:00:04.2]}
37... Bf4 {[%clk 0:00:02.4]} 38. Qd3 {[%clk 0:00:02.5]} 38... Bxe3 {[%clk
0:00:02.3]} 39. Qxe3 {[%clk 0:00:03.4]} 39... Qxe3+ {[%clk 0:00:03]} 40. Kxe3
{[%clk 0:00:04.3]} 40... Nd5+ {[%clk 0:00:03.6]} 41. Kd3 {[%clk 0:00:03.4]}
41... f6 {[%clk 0:00:03.9]} 42. a3 {[%clk 0:00:03.8]} 42... Nc7 {[%clk
0:00:04.4]} 43. b4 {[%clk 0:00:04.6]} 43... Kf7 {[%clk 0:00:05]} 44. Kc4 {[%clk
0:00:05.1]} 44... Ke6 {[%clk 0:00:05.3]} 45. Bg4+ {[%clk 0:00:05.1]} 45... Kd6
{[%clk 0:00:05.5]} 46. Bc8 {[%clk 0:00:06]} 46... b6 {[%clk 0:00:05.9]} 47. Bg4
{[%clk 0:00:06.9]} 47... Nd5 {[%clk 0:00:05.8]} 48. Bf3 {[%clk 0:00:07.3]} 48...
Ne7 {[%clk 0:00:06.2]} 49. Kd3 {[%clk 0:00:06.9]} 49... Nd5 {[%clk 0:00:05.8]}
50. Be4 {[%clk 0:00:07]} 50... Ne7 {[%clk 0:00:05.8]} 51. Bf3 {[%clk 0:00:07]}
51... f5 {[%clk 0:00:06.3]} 52. h4 {[%clk 0:00:05.5]} 52... g6 {[%clk
0:00:06.5]} 53. h5 {[%clk 0:00:05.2]} 53... g5 {[%clk 0:00:06.7]} 54. Kc4 {[%clk
0:00:04.9]} 54... Nd5 {[%clk 0:00:06.7]} 55. Kd3 {[%clk 0:00:04.7]} 55... Nf4+
{[%clk 0:00:06.5]} 56. Ke3 {[%clk 0:00:05.2]} 56... Ne6 {[%clk 0:00:05.9]} 57.
g3 {[%clk 0:00:05]} 57... Nc7 {[%clk 0:00:05.8]} 58. Kd3 {[%clk 0:00:05.1]}
58... Nd5 {[%clk 0:00:05.9]} 59. Bg2 {[%clk 0:00:03.4]} 59... f4 {[%clk
0:00:06.1]} 60. g4 {[%clk 0:00:03.3]} 60... Nf6 {[%clk 0:00:06.1]} 61. Bf3
{[%clk 0:00:03.3]} 61... Nd7 {[%clk 0:00:05.1]} 62. Ke4 {[%clk 0:00:03.5]} 62...
Ke6 {[%clk 0:00:03.2]} 63. Be2 {[%clk 0:00:03.8]} 63... Nf6+ {[%clk 0:00:03.4]}
64. Kd3 {[%clk 0:00:03]} 64... Kd6 {[%clk 0:00:03.8]} 65. Bf3 {[%clk 0:00:03.3]}
65... b5 {[%clk 0:00:04.1]} 66. Kd2 {[%clk 0:00:02.8]} 66... Nd5 {[%clk
0:00:04.4]} 67. Kd3 {[%clk 0:00:03.4]} 67... Nb6 {[%clk 0:00:04.8]} 68. Ke4
{[%clk 0:00:03.6]} 68... Nc4 {[%clk 0:00:05.2]} 69. Kf5 {[%clk 0:00:04.2]} 69...
Nd2 {[%clk 0:00:05.5]} 70. Be2 {[%clk 0:00:03.1]} 70... f3 {[%clk 0:00:05.8]}
71. Bd3 {[%clk 0:00:03.8]} 71... f2 {[%clk 0:00:05.5]} 72. Kg6 {[%clk
0:00:04.6]} 72... f1=Q {[%clk 0:00:04.2]} 73. Bxf1 {[%clk 0:00:05.2]} 73... Nxf1
{[%clk 0:00:05.1]} 74. Kxh6 {[%clk 0:00:05.7]} 74... Ne3 {[%clk 0:00:04]} 75.
Kxg5 {[%clk 0:00:05.9]} 75... Ke6 {[%clk 0:00:03.7]} 76. Kg6 {[%clk 0:00:05.9]}
76... Nxg4 {[%clk 0:00:03.3]} 77. Kg7 {[%clk 0:00:05.9]} 77... Kd5 {[%clk
0:00:03.1]} 78. Kg6 {[%clk 0:00:06.5]} 78... Kxd4 {[%clk 0:00:03]} 79. Kg5
{[%clk 0:00:07.1]} 79... Ne5 {[%clk 0:00:03.2]} 80. Kf6 {[%clk 0:00:07.6]} 80...
Ng4+ {[%clk 0:00:02.9]} 81. Kg5 {[%clk 0:00:07.9]} 81... Ne5 {[%clk 0:00:03.3]}
82. Kf5 {[%clk 0:00:08.3]} 82... Nf7 {[%clk 0:00:03]} 83. Kg6 {[%clk 0:00:08.7]}
83... Ne5+ {[%clk 0:00:02.4]} 84. Kf5 {[%clk 0:00:09]} 1-0

[Event "*** SCC Grand Prix: Titled Tuesday Blitz"]
[Site "Chess.com"]
[Date "2020.07.14"]
[Round "7"]
[White "Chess_Boxer123"]
[Black "2900tactinhos"]
[Result "1/2-1/2"]
[WhiteElo "2573"]
[BlackElo "2431"]
[TimeControl "180+1"]
[EndTime "11:21:46 PDT"]
[Termination "Game drawn by stalemate"]

1. d4 {[%clk 0:02:57.2]} 1... Nf6 {[%clk 0:03:00]} 2. Bf4 {[%clk 0:02:56.9]}
2... c5 {[%clk 0:02:59.4]} 3. d5 {[%clk 0:02:56.8]} 3... d6 {[%clk 0:02:59]} 4.
Nc3 {[%clk 0:02:56.4]} 4... a6 {[%clk 0:02:58.4]} 5. a4 {[%clk 0:02:56.2]} 5...
g6 {[%clk 0:02:57.8]} 6. e4 {[%clk 0:02:56.1]} 6... Bg7 {[%clk 0:02:57.5]} 7. h3
{[%clk 0:02:55.3]} 7... O-O {[%clk 0:02:56.9]} 8. Nf3 {[%clk 0:02:55.4]} 8...
Qa5 {[%clk 0:02:57]} 9. Bd2 {[%clk 0:02:51.9]} 9... Qc7 {[%clk 0:02:55]} 10. Bd3
{[%clk 0:02:51.2]} 10... e5 {[%clk 0:02:53.9]} 11. dxe6 {[%clk 0:02:45.9]} 11...
Bxe6 {[%clk 0:02:52.4]} 12. O-O {[%clk 0:02:44.5]} 12... Nc6 {[%clk 0:02:52.5]}
13. Ng5 {[%clk 0:02:40.7]} 13... Rad8 {[%clk 0:02:42.8]} 14. Bf4 {[%clk
0:02:34]} 14... Ne5 {[%clk 0:02:42]} 15. Be2 {[%clk 0:02:13.4]} 15... Bc4 {[%clk
0:02:39.7]} 16. Bxc4 {[%clk 0:02:05.1]} 16... Nxc4 {[%clk 0:02:39]} 17. b3
{[%clk 0:02:03]} 17... Ne5 {[%clk 0:02:23.9]} 18. Nf3 {[%clk 0:02:00.1]} 18...
Qc6 {[%clk 0:02:20.2]} 19. Re1 {[%clk 0:01:53.2]} 19... Rfe8 {[%clk 0:02:10.1]}
20. Bg5 {[%clk 0:01:40.3]} 20... h6 {[%clk 0:02:01.2]} 21. Bh4 {[%clk
0:01:40.1]} 21... g5 {[%clk 0:01:55.2]} 22. Bg3 {[%clk 0:01:39.7]} 22... Ng6
{[%clk 0:01:55.6]} 23. Qd3 {[%clk 0:01:28]} 23... d5 {[%clk 0:01:55]} 24. exd5
{[%clk 0:01:24.7]} 24... Nxd5 {[%clk 0:01:50.3]} 25. Rxe8+ {[%clk 0:01:11.3]}
25... Qxe8 {[%clk 0:01:50]} 26. Re1 {[%clk 0:01:02]} 26... Qc6 {[%clk
0:01:40.5]} 27. Nxd5 {[%clk 0:00:58.5]} 27... Rxd5 {[%clk 0:01:39.9]} 28. Qe4
{[%clk 0:00:58.8]} 28... f5 {[%clk 0:01:24.3]} 29. Qe2 {[%clk 0:00:30.2]} 29...
f4 {[%clk 0:01:22.4]} 30. Bh2 {[%clk 0:00:29.9]} 30... b5 {[%clk 0:01:20]} 31.
axb5 {[%clk 0:00:29.7]} 31... axb5 {[%clk 0:01:19.7]} 32. Rd1 {[%clk 0:00:24.7]}
32... Rxd1+ {[%clk 0:01:17.6]} 33. Qxd1 {[%clk 0:00:25.6]} 33... c4 {[%clk
0:01:17]} 34. bxc4 {[%clk 0:00:25.2]} 34... Qxc4 {[%clk 0:01:16.8]} 35. Kh1
{[%clk 0:00:21.8]} 35... Ne5 {[%clk 0:01:11.8]} 36. Nxe5 {[%clk 0:00:22.1]}
36... Bxe5 {[%clk 0:01:11.2]} 37. f3 {[%clk 0:00:22.6]} 37... Qd4 {[%clk
0:01:08.1]} 38. Qxd4 {[%clk 0:00:15.8]} 38... Bxd4 {[%clk 0:01:08.3]} 39. Bg1
{[%clk 0:00:16.4]} 39... Be3 {[%clk 0:00:59.5]} 40. Bxe3 {[%clk 0:00:13.3]}
40... fxe3 {[%clk 0:00:58.2]} 41. Kg1 {[%clk 0:00:13.9]} 41... Kf7 {[%clk
0:00:58.2]} 42. Kf1 {[%clk 0:00:14.3]} 42... Ke6 {[%clk 0:00:58.3]} 43. Ke2
{[%clk 0:00:15]} 43... Kd5 {[%clk 0:00:58]} 44. Kxe3 {[%clk 0:00:15.9]} 44...
Kc4 {[%clk 0:00:58.3]} 45. Kd2 {[%clk 0:00:14.2]} 45... b4 {[%clk 0:00:58.5]}
46. g3 {[%clk 0:00:07.3]} 46... Kd4 {[%clk 0:00:58.6]} 47. h4 {[%clk 0:00:07.5]}
47... gxh4 {[%clk 0:00:55.5]} 48. gxh4 {[%clk 0:00:08.4]} 48... h5 {[%clk
0:00:56.3]} 49. Ke2 {[%clk 0:00:08.9]} 49... Kc3 {[%clk 0:00:55.8]} 50. Kd1
{[%clk 0:00:09.3]} 50... Kd4 {[%clk 0:00:56.2]} 51. Kd2 {[%clk 0:00:09.6]} 51...
Kc4 {[%clk 0:00:53.1]} 52. f4 {[%clk 0:00:09.1]} 52... Kd4 {[%clk 0:00:53]} 53.
f5 {[%clk 0:00:04.1]} 53... Ke5 {[%clk 0:00:53.2]} 54. Ke3 {[%clk 0:00:03.4]}
54... Kxf5 {[%clk 0:00:52.6]} 55. Kf3 {[%clk 0:00:03.8]} 55... Ke5 {[%clk
0:00:52.7]} 56. Ke3 {[%clk 0:00:04.3]} 56... Kd5 {[%clk 0:00:50.9]} 57. Kd3
{[%clk 0:00:02.8]} 57... Kc5 {[%clk 0:00:48.4]} 58. Ke3 {[%clk 0:00:02]} 58...
Kc4 {[%clk 0:00:48.5]} 59. Ke2 {[%clk 0:00:01.3]} 59... Kd4 {[%clk 0:00:45.1]}
60. Kd2 {[%clk 0:00:01.3]} 60... Ke4 {[%clk 0:00:44.7]} 61. c3 {[%clk
0:00:01.2]} 61... bxc3+ {[%clk 0:00:43.4]} 62. Kxc3 {[%clk 0:00:01.5]} 62... Kf4
{[%clk 0:00:44.3]} 63. Kd2 {[%clk 0:00:01.8]} 63... Kg4 {[%clk 0:00:44.6]} 64.
Ke2 {[%clk 0:00:02.5]} 64... Kxh4 {[%clk 0:00:44.2]} 65. Kf2 {[%clk 0:00:03.4]}
65... Kh3 {[%clk 0:00:44.1]} 66. Kg1 {[%clk 0:00:04.3]} 66... h4 {[%clk
0:00:43.9]} 67. Kh1 {[%clk 0:00:05.2]} 67... Kg3 {[%clk 0:00:43.4]} 68. Kg1
{[%clk 0:00:06.1]} 68... h3 {[%clk 0:00:44.1]} 69. Kh1 {[%clk 0:00:07]} 69... h2
{[%clk 0:00:45]} 1/2-1/2

[Event "*** SCC Grand Prix: Titled Tuesday Blitz"]
[Site "Chess.com"]
[Date "2020.07.14"]
[Round "7"]
[White "Sergey85Rodchenkov"]
[Black "Fischerev7"]
[Result "0-1"]
[WhiteElo "2506"]
[BlackElo "2376"]
[TimeControl "180+1"]
[EndTime "11:21:46 PDT"]
[Termination "Fischerev7 won by resignation"]

1. e4 {[%clk 0:03:00.9]} 1... c5 {[%clk 0:02:59.1]} 2. Nf3 {[%clk 0:03:00.6]}
2... d6 {[%clk 0:02:59.4]} 3. d4 {[%clk 0:03:00.7]} 3... cxd4 {[%clk 0:03:00.3]}
4. Nxd4 {[%clk 0:03:01.3]} 4... Nf6 {[%clk 0:03:00.9]} 5. Nc3 {[%clk 0:03:01.9]}
5... a6 {[%clk 0:03:01.5]} 6. Bc4 {[%clk 0:03:02.2]} 6... e6 {[%clk 0:03:01.6]}
7. Bb3 {[%clk 0:03:02.4]} 7... Be7 {[%clk 0:03:02]} 8. O-O {[%clk 0:03:02.3]}
8... O-O {[%clk 0:03:01.6]} 9. f4 {[%clk 0:03:02.4]} 9... Qc7 {[%clk 0:02:59.5]}
10. f5 {[%clk 0:03:01.8]} 10... e5 {[%clk 0:02:58.4]} 11. Nde2 {[%clk
0:03:01.4]} 11... b5 {[%clk 0:02:55.6]} 12. Bg5 {[%clk 0:03:00.8]} 12... Nbd7
{[%clk 0:02:54]} 13. Bxf6 {[%clk 0:03:00.5]} 13... Nxf6 {[%clk 0:02:53.8]} 14.
Ng3 {[%clk 0:03:01.1]} 14... b4 {[%clk 0:02:51.8]} 15. Nd5 {[%clk 0:02:58.4]}
15... Nxd5 {[%clk 0:02:51.5]} 16. exd5 {[%clk 0:02:56.6]} 16... f6 {[%clk
0:02:18.2]} 17. a3 {[%clk 0:02:55.4]} 17... bxa3 {[%clk 0:02:14.6]} 18. Rxa3
{[%clk 0:02:55]} 18... Bd7 {[%clk 0:02:10.2]} 19. Ne4 {[%clk 0:02:53.5]} 19...
Kh8 {[%clk 0:02:06.2]} 20. Kh1 {[%clk 0:02:51.8]} 20... Bb5 {[%clk 0:02:00.1]}
21. Re1 {[%clk 0:02:46.3]} 21... Rfb8 {[%clk 0:01:46.5]} 22. Qh5 {[%clk
0:02:44.7]} 22... Be8 {[%clk 0:01:43.3]} 23. Qh4 {[%clk 0:02:35.8]} 23... a5
{[%clk 0:01:41.7]} 24. Nc3 {[%clk 0:01:48.6]} 24... Bf7 {[%clk 0:01:29.1]} 25.
Ra4 {[%clk 0:01:45.1]} 25... Qc5 {[%clk 0:01:16.1]} 26. Rea1 {[%clk 0:01:38.7]}
26... h6 {[%clk 0:01:07.5]} 27. h3 {[%clk 0:01:37.9]} 27... Be8 {[%clk
0:01:06.1]} 28. Rc4 {[%clk 0:01:35.3]} 28... Qe3 {[%clk 0:00:52.9]} 29. Rc7
{[%clk 0:01:25.3]} 29... Bf8 {[%clk 0:00:52]} 30. Re1 {[%clk 0:01:12]} 30... Qg5
{[%clk 0:00:50.5]} 31. Qxg5 {[%clk 0:01:09.9]} 31... hxg5 {[%clk 0:00:41]} 32.
Ra1 {[%clk 0:01:08.5]} 32... Kg8 {[%clk 0:00:37]} 33. g4 {[%clk 0:01:05.1]}
33... Ra6 {[%clk 0:00:32.5]} 34. Ra2 {[%clk 0:01:04.3]} 34... Rba8 {[%clk
0:00:28.7]} 35. Ba4 {[%clk 0:01:03.6]} 35... Bf7 {[%clk 0:00:25.5]} 36. Bc6
{[%clk 0:01:02]} 36... Rb8 {[%clk 0:00:23.2]} 37. b3 {[%clk 0:01:01.8]} 37...
Be8 {[%clk 0:00:18]} 38. Kg2 {[%clk 0:00:56.6]} 38... Bf7 {[%clk 0:00:16.4]} 39.
Kf3 {[%clk 0:00:55.6]} 39... Be8 {[%clk 0:00:16.1]} 40. Ke2 {[%clk 0:00:54]}
40... Bf7 {[%clk 0:00:15.4]} 41. Kd3 {[%clk 0:00:53.8]} 41... Rb4 {[%clk
0:00:15.3]} 42. Ra4 {[%clk 0:00:52]} 42... Rxa4 {[%clk 0:00:14.2]} 43. Bxa4
{[%clk 0:00:47.6]} 43... Rb6 {[%clk 0:00:12.8]} 44. Ra7 {[%clk 0:00:40.4]} 44...
Rb4 {[%clk 0:00:12.2]} 45. Rxa5 {[%clk 0:00:39.8]} 45... Rd4+ {[%clk 0:00:12.5]}
46. Ke2 {[%clk 0:00:39.9]} 46... g6 {[%clk 0:00:11.3]} 47. Bd7 {[%clk
0:00:38.1]} 47... gxf5 {[%clk 0:00:11]} 48. Bxf5 {[%clk 0:00:37.2]} 48... Be7
{[%clk 0:00:10]} 49. Ra8+ {[%clk 0:00:35.9]} 49... Kg7 {[%clk 0:00:09.5]} 50.
Ra7 {[%clk 0:00:36]} 50... Kf8 {[%clk 0:00:09.7]} 51. Be4 {[%clk 0:00:31.9]}
51... Rb4 {[%clk 0:00:06.9]} 52. Kd3 {[%clk 0:00:30.9]} 52... Rd4+ {[%clk
0:00:07]} 53. Ke3 {[%clk 0:00:31]} 53... Bd8 {[%clk 0:00:06.9]} 54. Ra8 {[%clk
0:00:28.7]} 54... Ke7 {[%clk 0:00:06.5]} 55. Nb5 {[%clk 0:00:27.7]} 55... Rb4
{[%clk 0:00:03.9]} 56. Rb8 {[%clk 0:00:22.8]} 56... Be8 {[%clk 0:00:03.3]} 57.
Bd3 {[%clk 0:00:21.7]} 57... Bd7 {[%clk 0:00:02.7]} 58. Rb7 {[%clk 0:00:20.6]}
58... Ke8 {[%clk 0:00:02.4]} 59. c4 {[%clk 0:00:19]} 59... Be7 {[%clk
0:00:02.6]} 60. Rb8+ {[%clk 0:00:18.7]} 60... Bd8 {[%clk 0:00:03]} 61. Bc2
{[%clk 0:00:18.7]} 61... Ke7 {[%clk 0:00:02.9]} 62. Kd2 {[%clk 0:00:18.8]} 62...
Bxb5 {[%clk 0:00:02.9]} 63. cxb5 {[%clk 0:00:18.4]} 63... Rd4+ {[%clk
0:00:03.3]} 64. Bd3 {[%clk 0:00:17.6]} 64... Rxd5 {[%clk 0:00:04.2]} 65. Ke3
{[%clk 0:00:17.6]} 65... Rc5 {[%clk 0:00:04.3]} 66. Bc4 {[%clk 0:00:16.6]} 66...
d5 {[%clk 0:00:03.9]} 67. Rb7+ {[%clk 0:00:16.3]} 67... Kd6 {[%clk 0:00:04]} 68.
Bd3 {[%clk 0:00:16.4]} 68... d4+ {[%clk 0:00:04]} 69. Ke4 {[%clk 0:00:16.4]}
69... Rc3 {[%clk 0:00:04.9]} 70. Bc4 {[%clk 0:00:15.5]} 70... Rxh3 {[%clk
0:00:05.1]} 71. Kf5 {[%clk 0:00:15.5]} 71... Rf3+ {[%clk 0:00:05.2]} 72. Kg6
{[%clk 0:00:15.2]} 72... Rf4 {[%clk 0:00:06.1]} 73. Rb8 {[%clk 0:00:14.7]} 73...
Rxg4 {[%clk 0:00:05.9]} 74. Rxd8+ {[%clk 0:00:14.5]} 74... Kc5 {[%clk
0:00:06.8]} 75. Rf8 {[%clk 0:00:14.3]} 75... Rf4 {[%clk 0:00:07.1]} 76. Rxf6
{[%clk 0:00:14.2]} 76... Rxf6+ {[%clk 0:00:07.3]} 77. Kxf6 {[%clk 0:00:14.5]}
77... g4 {[%clk 0:00:08.2]} 78. Kxe5 {[%clk 0:00:14.7]} 78... g3 {[%clk
0:00:08.6]} 79. Kf4 {[%clk 0:00:14.7]} 79... g2 {[%clk 0:00:08.6]} 80. Kf3
{[%clk 0:00:13.9]} 80... g1=Q {[%clk 0:00:09.5]} 81. Kf4 {[%clk 0:00:13.9]}
81... Qe3+ {[%clk 0:00:10.4]} 0-1